Workbook

Sheet Producten in pot
A1: Nr. | B1: VVP artikelnummer | C1: Prod loc = SPD | D1: Omschrijving
A2: 70100076 | B2: =VLOOKUP(A2,[1]!Tabel1[[Nr.]:[Vaste verrekenprijs]],3,FALSE) ->  | C2: 70100076.001 | D2: Kaliptus Babybalsem 50 ml (2021)
A3: 70200026 | B3: =VLOOKUP(A3,[1]!Tabel1[[Nr.]:[Vaste verrekenprijs]],3,FALSE) ->  | C3: 70200026.001 | D3: BV Dennenbalsem 50 ml (Ecogarantie®)
A4: 70300021 | B4: =VLOOKUP(A4,[1]!Tabel1[[Nr.]:[Vaste verrekenprijs]],3,FALSE) ->  | C4: 70300021.001 | D4: Biodermal PCLE Crème 50 ml (2019)
A5: 70300054 | B5: =VLOOKUP(A5,[1]!Tabel1[[Nr.]:[Vaste verrekenprijs]],3,FALSE) ->  | C5: / | D5: Henri Willig Gelee Royale - 100 ml
A6: 70300055 | B6: =VLOOKUP(A6,[1]!Tabel1[[Nr.]:[Vaste verrekenprijs]],3,FALSE) ->  | C6: / | D6: Henri Willig Honingcrème 100 ml (2015)
A7: 70300057 | B7: =VLOOKUP(A7,[1]!Tabel1[[Nr.]:[Vaste verrekenprijs]],3,FALSE) ->  | C7: 70300057.001 | D7: Anne Honingcrème 100 ml
A8: 70300058 | B8: =VLOOKUP(A8,[1]!Tabel1[[Nr.]:[Vaste verrekenprijs]],3,FALSE) ->  | C8: 70300058.001 | D8: Anne Gelee Royale - 100 ml ( zonder label )
A9: 70300068 | B9: =VLOOKUP(A9,[1]!Tabel1[[Nr.]:[Vaste verrekenprijs]],3,FALSE) ->  | C9: 70300068.001 | D9: KV Originals Scrubcrème Abrikoos 100 ml (2018)
A10: 70300090 | B10: =VLOOKUP(A10,[1]!Tabel1[[Nr.]:[Vaste verrekenprijs]],3,FALSE) ->  | C10: / | D10: H&K Body Souffle 200 ml
A11: 70300100 | B11: =VLOOKUP(A11,[1]!Tabel1[[Nr.]:[Vaste verrekenprijs]],3,FALSE) ->  | C11: / | D11: Cosmostar Crème Argan-Karité 200 ml (Ecogarantie®)
A12: 70300163 | B12: =VLOOKUP(A12,[1]!Tabel1[[Nr.]:[Vaste verrekenprijs]],3,FALSE) ->  | C12: / | D12: Decathlon Petroleum Jelly Rugby 400 ml
A13: 70300166 | B13: =VLOOKUP(A13,[1]!Tabel1[[Nr.]:[Vaste verrekenprijs]],3,FALSE) ->  | C13: 70300166.001 | D13: Marval &Vincent Uiercreme 500 ml
A14: 70300168 | B14: =VLOOKUP(A14,[1]!Tabel1[[Nr.]:[Vaste verrekenprijs]],3,FALSE) ->  | C14: 70300168.001 | D14: Marval &Vincent Uiercreme 500 ml ( label )
A15: 70400020 | B15: =VLOOKUP(A15,[1]!Tabel1[[Nr.]:[Vaste verrekenprijs]],3,FALSE) ->  | C15: 70400020.001 | D15: VN Echinacea Hand & Body Crème 300 ml
A16: 70500009 | B16: =VLOOKUP(A16,[1]!Tabel1[[Nr.]:[Vaste verrekenprijs]],3,FALSE) ->  | C16: / | D16: Fouganza Refreshing Gel 500 ml ( New )
A17: 70800048 | B17: =VLOOKUP(A17,[1]!Tabel1[[Nr.]:[Vaste verrekenprijs]],3,FALSE) ->  | C17: 70800048.001 | D17: Bergman Scar retreat Cream 15 ml
A18: 70800050 | B18: =VLOOKUP(A18,[1]!Tabel1[[Nr.]:[Vaste verrekenprijs]],3,FALSE) ->  | C18: 70800050.001 | D18: Bergman Laser Repair 15 ml Onverpakt
A19: 70800051 | B19: =VLOOKUP(A19,[1]!Tabel1[[Nr.]:[Vaste verrekenprijs]],3,FALSE) ->  | C19: / | D19: Bergman Skin Supplies Day SPF15 15 ml
A20: 70800054 | B20: =VLOOKUP(A20,[1]!Tabel1[[Nr.]:[Vaste verrekenprijs]],3,FALSE) ->  | C20: 70800054.001 | D20: Bergman Laser Repair 15 ml Retail
A21: 70800094 | B21: =VLOOKUP(A21,[1]!Tabel1[[Nr.]:[Vaste verrekenprijs]],3,FALSE) ->  | C21: 70800094.001 | D21: Bergman Skin Supplies Day SPF15 50 ml Retail
A22: 70800096 | B22: =VLOOKUP(A22,[1]!Tabel1[[Nr.]:[Vaste verrekenprijs]],3,FALSE) ->  | C22: 70800096.001 | D22: Bergman Sensitivity 50 ml Tester
A23: 70800097 | B23: =VLOOKUP(A23,[1]!Tabel1[[Nr.]:[Vaste verrekenprijs]],3,FALSE) ->  | C23: 70800097.001 | D23: Bergman Laser Repair 50 ml Retail
A24: 70800101 | B24: =VLOOKUP(A24,[1]!Tabel1[[Nr.]:[Vaste verrekenprijs]],3,FALSE) ->  | C24: 70800101.001 | D24: Biodermal Dag- & Nachtcrème 50 ml
A25: 70800102 | B25: =VLOOKUP(A25,[1]!Tabel1[[Nr.]:[Vaste verrekenprijs]],3,FALSE) ->  | C25: 70800102.001 | D25: Biodermal Hydra Plus Dagcrème 50 ml
A26: 70800122 | B26: =VLOOKUP(A26,[1]!Tabel1[[Nr.]:[Vaste verrekenprijs]],3,FALSE) ->  | C26: 70800122.001 | D26: Bergman Laser Repair 50 ml Tester
A27: 70800129 | B27: =VLOOKUP(A27,[1]!Tabel1[[Nr.]:[Vaste verrekenprijs]],3,FALSE) ->  | C27: 70800129.001 | D27: Bergman Sensitivity 50 ml Retail
A28: 70800130 | B28: =VLOOKUP(A28,[1]!Tabel1[[Nr.]:[Vaste verrekenprijs]],3,FALSE) ->  | C28: / | D28: Bergman Skin Supplies Day SPF15 50 ml Tester
A29: 70800147 | B29: =VLOOKUP(A29,[1]!Tabel1[[Nr.]:[Vaste verrekenprijs]],3,FALSE) ->  | C29: 70800147.001 | D29: KV Sensitive Dagcreme SPF15 50 ml
A30: 70800148 | B30: =VLOOKUP(A30,[1]!Tabel1[[Nr.]:[Vaste verrekenprijs]],3,FALSE) ->  | C30: 70800148.001 | D30: KV Hydro Dagcrème Normaal/Gemengde huid 50 ml
A31: 70800151 | B31: =VLOOKUP(A31,[1]!Tabel1[[Nr.]:[Vaste verrekenprijs]],3,FALSE) ->  | C31: 70800151.001 | D31: KV Q10 Dagcreme SPF30 50 ml
A32: 70800152 | B32: =VLOOKUP(A32,[1]!Tabel1[[Nr.]:[Vaste verrekenprijs]],3,FALSE) ->  | C32: 70800152.001 | D32: KV Hydro Nachtcreme Normaal/Gemengde Huid 50 ml
A33: 70800153 | B33: =VLOOKUP(A33,[1]!Tabel1[[Nr.]:[Vaste verrekenprijs]],3,FALSE) ->  | C33: 70800153.001 | D33: KV Hydro Nachtcrème Droog/Gevoelige huid 50 ml
A34: 70800154 | B34: =VLOOKUP(A34,[1]!Tabel1[[Nr.]:[Vaste verrekenprijs]],3,FALSE) ->  | C34: 70800154.001 | D34: KV Q10 Nachtcreme 50 ml
A35: 70800155 | B35: =VLOOKUP(A35,[1]!Tabel1[[Nr.]:[Vaste verrekenprijs]],3,FALSE) ->  | C35: 70800155.001 | D35: KV Sensitive Nachtcreme 50 ml
A36: 70800182 | B36: =VLOOKUP(A36,[1]!Tabel1[[Nr.]:[Vaste verrekenprijs]],3,FALSE) ->  | C36: 70800182.001 | D36: KV Originals Dagcrème Aloe Vera 100 ml
A37: 70800183 | B37: =VLOOKUP(A37,[1]!Tabel1[[Nr.]:[Vaste verrekenprijs]],3,FALSE) ->  | C37: 70800183.001 | D37: KV Originals Nachtcrème Aloe Vera 100 ml
A38: 70800196 | B38: =VLOOKUP(A38,[1]!Tabel1[[Nr.]:[Vaste verrekenprijs]],3,FALSE) ->  | C38: 70800196.001 | D38: KV Originals Dagcrème Vitamine C 100 ml
A39: 70800197 | B39: =VLOOKUP(A39,[1]!Tabel1[[Nr.]:[Vaste verrekenprijs]],3,FALSE) ->  | C39: 70800197.001 | D39: KV Originals Nachtcrème Vitamine C 100 ml
A40: 70800201 | B40: =VLOOKUP(A40,[1]!Tabel1[[Nr.]:[Vaste verrekenprijs]],3,FALSE) ->  | C40: 70800201.001 | D40: KV Originals Dag & Nachtcrème Tea Tree 100 ml
A41: 70800202 | B41: =VLOOKUP(A41,[1]!Tabel1[[Nr.]:[Vaste verrekenprijs]],3,FALSE) ->  | C41: 70800202.001 | D41: TP Classics Dag & Nachtcrème Tea Tree 100 ml
A42: 70800203 | B42: =VLOOKUP(A42,[1]!Tabel1[[Nr.]:[Vaste verrekenprijs]],3,FALSE) ->  | C42: 70800203.001 | D42: KV Originals Scrubcrème Tea Tree 100 ml (2018)
A43: 70800205 | B43: =VLOOKUP(A43,[1]!Tabel1[[Nr.]:[Vaste verrekenprijs]],3,FALSE) ->  | C43: 70800205.001 | D43: TP Classics Scrubcrème Tea Tree 100 ml
A44: 70800261 | B44: =VLOOKUP(A44,[1]!Tabel1[[Nr.]:[Vaste verrekenprijs]],3,FALSE) ->  | C44: 70800261.001 | D44: TP Dagcreme Hydro SPF15 50ml
A45: 70800263 | B45: =VLOOKUP(A45,[1]!Tabel1[[Nr.]:[Vaste verrekenprijs]],3,FALSE) ->  | C45: 70800263.001 | D45: TP Q10 Dagcreme SPF30 50 ml
A46: 70800265 | B46: =VLOOKUP(A46,[1]!Tabel1[[Nr.]:[Vaste verrekenprijs]],3,FALSE) ->  | C46: 70800265.001 | D46: TP Dagcreme Vitamine E 50ml
A47: 70800266 | B47: =VLOOKUP(A47,[1]!Tabel1[[Nr.]:[Vaste verrekenprijs]],3,FALSE) ->  | C47: 70800266.001 | D47: TP Dagcreme Vitamine E Extra 50ml
A48: 70800268 | B48: =VLOOKUP(A48,[1]!Tabel1[[Nr.]:[Vaste verrekenprijs]],3,FALSE) ->  | C48: 70800268.001 | D48: TP Sensitive Dagcreme SPF15 50 ml
A49: 70800277 | B49: =VLOOKUP(A49,[1]!Tabel1[[Nr.]:[Vaste verrekenprijs]],3,FALSE) ->  | C49: 70800277.001 | D49: KV Q10 Vit. C Dagcrème SPF15 50 ml
A50: 70800278 | B50: =VLOOKUP(A50,[1]!Tabel1[[Nr.]:[Vaste verrekenprijs]],3,FALSE) ->  | C50: 70800278.001 | D50: KV Q10 Vit. C Nachtcrème 50 ml
A51: 70800279 | B51: =VLOOKUP(A51,[1]!Tabel1[[Nr.]:[Vaste verrekenprijs]],3,FALSE) ->  | C51: 70800279.001 | D51: Boni Dagcreme 50 ml
A52: 70800280 | B52: =VLOOKUP(A52,[1]!Tabel1[[Nr.]:[Vaste verrekenprijs]],3,FALSE) ->  | C52: 70800280.001 | D52: Boni Nachtcreme 50 ml
A53: 70800281 | B53: =VLOOKUP(A53,[1]!Tabel1[[Nr.]:[Vaste verrekenprijs]],3,FALSE) ->  | C53: 70800281.001 | D53: Boni Anti - Aging Dagcreme 50 ml
A54: 70800282 | B54: =VLOOKUP(A54,[1]!Tabel1[[Nr.]:[Vaste verrekenprijs]],3,FALSE) ->  | C54: 70800282.001 | D54: Boni Anti - Aging Nachtcreme 50 ml
A55: 70900001 | B55: =VLOOKUP(A55,[1]!Tabel1[[Nr.]:[Vaste verrekenprijs]],3,FALSE) ->  | C55: 70900001.001 | D55: KV Moustache&Baardwax 50 ml
A56: 71300045 | B56: =VLOOKUP(A56,[1]!Tabel1[[Nr.]:[Vaste verrekenprijs]],3,FALSE) ->  | C56: 71300045 | D56: Only You LipBalm Mango & Vanilla 15 ml
A57: 71300046 | B57: =VLOOKUP(A57,[1]!Tabel1[[Nr.]:[Vaste verrekenprijs]],3,FALSE) ->  | C57: 71300046 | D57: Only You LipBalm Passion Fruit & Blackberry 15 ml
A58: 71300047 | B58: =VLOOKUP(A58,[1]!Tabel1[[Nr.]:[Vaste verrekenprijs]],3,FALSE) ->  | C58: 71300047 | D58: Only You LipBalm Green Tea & Aloe Vera 15 ml
A59: 71300048 | B59: =VLOOKUP(A59,[1]!Tabel1[[Nr.]:[Vaste verrekenprijs]],3,FALSE) ->  | C59: 71300048 | D59: Only You LipBalm Mint & Blueberry 15 ml
A60: 71300049 | B60: =VLOOKUP(A60,[1]!Tabel1[[Nr.]:[Vaste verrekenprijs]],3,FALSE) ->  | C60: 71300049 | D60: Only You LipScrub Orange & Apricot 15 ml
A61: 71300055 | B61: =VLOOKUP(A61,[1]!Tabel1[[Nr.]:[Vaste verrekenprijs]],3,FALSE) ->  | C61: 71300055 | D61: KV Original Lipbalm Coconut 30gr
A62: 71300056 | B62: =VLOOKUP(A62,[1]!Tabel1[[Nr.]:[Vaste verrekenprijs]],3,FALSE) ->  | C62: 71300056 | D62: KV Original Lipbalm scrub 30gr
A63: 71300076 | B63: =VLOOKUP(A63,[1]!Tabel1[[Nr.]:[Vaste verrekenprijs]],3,FALSE) ->  | C63: 71300076 | D63: KV Original Lipbalm Abricot 30gr
A64: 71400015 | B64: =VLOOKUP(A64,[1]!Tabel1[[Nr.]:[Vaste verrekenprijs]],3,FALSE) ->  | C64: 71400015.001 | D64: KV Originals Oogcontourcrème Vitamine E 25 ml
A65: 71700249 | B65: =VLOOKUP(A65,[1]!Tabel1[[Nr.]:[Vaste verrekenprijs]],3,FALSE) ->  | C65: 71700249.001 | D65: SD After sun body butter 200 ml
A66: 71700250 | B66: =VLOOKUP(A66,[1]!Tabel1[[Nr.]:[Vaste verrekenprijs]],3,FALSE) ->  | C66: 71700250.001 | D66: SD Solait Aftersun Body Sorbet 200 ml
A67: 71700466 | B67: =VLOOKUP(A67,[1]!Tabel1[[Nr.]:[Vaste verrekenprijs]],3,FALSE) ->  | C67: / | D67: Etos After Sun hydrating cream aloe vera 250 ml
A68: 71700581 | B68: =VLOOKUP(A68,[1]!Tabel1[[Nr.]:[Vaste verrekenprijs]],3,FALSE) ->  | C68: 71700581.001 | D68: Cliniderm Instant Soothing After Sun Gel Cream P 2
A69: 70800159001 | B69: =VLOOKUP(A69,[1]!Tabel1[[Nr.]:[Vaste verrekenprijs]],3,FALSE) ->  | C69: 70800159.002 | D69: Bergman Multi Task 50 ml Tester
A70: 71000162001 | B70: =VLOOKUP(A70,[1]!Tabel1[[Nr.]:[Vaste verrekenprijs]],3,FALSE) ->  | C70: / | D70: KV Werkhanden 100g
A71: 71000162002 | B71: =VLOOKUP(A71,[1]!Tabel1[[Nr.]:[Vaste verrekenprijs]],3,FALSE) ->  | C71: / | D71: KV Werkhanden 100g
A72: 70500009.001 | B72: =VLOOKUP(A72,[1]!Tabel1[[Nr.]:[Vaste verrekenprijs]],3,FALSE) -> 9476 | C72: 70500009.002 | D72: Cool gel jar 500 mL
A73: 70800046.001 | B73: =VLOOKUP(A73,[1]!Tabel1[[Nr.]:[Vaste verrekenprijs]],3,FALSE) -> 9785 | C73: 70800046.002 | D73: Bergman 24 Hour Guard 15 ml Onverpakt
A74: 70800049.001 | B74: =VLOOKUP(A74,[1]!Tabel1[[Nr.]:[Vaste verrekenprijs]],3,FALSE) -> 9792 | C74: 70800049.002 | D74: Bergman Smooth Look 15 ml
A75: 70800052.001 | B75: =VLOOKUP(A75,[1]!Tabel1[[Nr.]:[Vaste verrekenprijs]],3,FALSE) -> 9798 | C75: 70800052.002 | D75: Bergman Multi Task 15 ml Onverpakt
A76: 70800055.001 | B76: =VLOOKUP(A76,[1]!Tabel1[[Nr.]:[Vaste verrekenprijs]],3,FALSE) -> 9804 | C76: 70800055.002 | D76: Bergman Multi Task 15 ml Retail
A77: 70800056.001 | B77: =VLOOKUP(A77,[1]!Tabel1[[Nr.]:[Vaste verrekenprijs]],3,FALSE) -> 9807 | C77: 70800056.002 | D77: Bergman Time Stop 15 ml Retail
A78: 70800057.001 | B78: =VLOOKUP(A78,[1]!Tabel1[[Nr.]:[Vaste verrekenprijs]],3,FALSE) -> 9810 | C78: 70800057.002 | D78: Bergman 24 Hour Guard 15 ml Retail
A79: 70800058.001 | B79: =VLOOKUP(A79,[1]!Tabel1[[Nr.]:[Vaste verrekenprijs]],3,FALSE) -> 9813 | C79: 70800058.002 | D79: Bergman Smooth Look 15 ml Tester
A80: 70800059.001 | B80: =VLOOKUP(A80,[1]!Tabel1[[Nr.]:[Vaste verrekenprijs]],3,FALSE) -> 9816 | C80: 70800059.002 | D80: Bergman Ultra Light Peptide 15ml Tester
A81: 70800093.001 | B81: =VLOOKUP(A81,[1]!Tabel1[[Nr.]:[Vaste verrekenprijs]],3,FALSE) -> 9842 | C81: 70800093.002 | D81: Bergman 24 Hour Guard 50 ml Retail
A82: 70800095.001 | B82: =VLOOKUP(A82,[1]!Tabel1[[Nr.]:[Vaste verrekenprijs]],3,FALSE) -> 9847 | C82: 70800095.002 | D82: Bergman Time Stop 50 ml Retail
A83: 70800098.001 | B83: =VLOOKUP(A83,[1]!Tabel1[[Nr.]:[Vaste verrekenprijs]],3,FALSE) -> 9854 | C83: 70800098.002 | D83: Bergman Multi Task 50 ml Retail
A84: 70800123.001 | B84: =VLOOKUP(A84,[1]!Tabel1[[Nr.]:[Vaste verrekenprijs]],3,FALSE) -> 9883 | C84: 70800123.002 | D84: Bergman 24 Hour Guard 50 ml Tester
A85: 70800124.001 | B85: =VLOOKUP(A85,[1]!Tabel1[[Nr.]:[Vaste verrekenprijs]],3,FALSE) -> 9886 | C85: 70800124.002 | D85: Bergman Time Stop 50 ml Tester
A86: 70800149.001 | B86: =VLOOKUP(A86,[1]!Tabel1[[Nr.]:[Vaste verrekenprijs]],3,FALSE) -> 9920 | C86: 70800149.002 | D86: KV Hydro Dagcrème Droog/Gevoelige huid 50 ml
A87: 70800160.001 | B87: =VLOOKUP(A87,[1]!Tabel1[[Nr.]:[Vaste verrekenprijs]],3,FALSE) -> 9940 | C87: 70800160.002 | D87: Bergman Ultra Light Peptide 50 ml Retail
A88: 70800161.001 | B88: =VLOOKUP(A88,[1]!Tabel1[[Nr.]:[Vaste verrekenprijs]],3,FALSE) -> 9943 | C88: 70800161.001 | D88: Bergman Ultra Light Peptide 50 ml Tester
A89: 70800185.002 | B89: =VLOOKUP(A89,[1]!Tabel1[[Nr.]:[Vaste verrekenprijs]],3,FALSE) -> 9972 | C89: 70800185.003 | D89: KV Originals Dagcrème Vitamine E 100 ml
A90: 70800186.002 | B90: =VLOOKUP(A90,[1]!Tabel1[[Nr.]:[Vaste verrekenprijs]],3,FALSE) -> 9976 | C90: 70800186.003 | D90: KV Originals Nachtcrème Vitamine E 100ml
A91: 70800262.001 | B91: =VLOOKUP(A91,[1]!Tabel1[[Nr.]:[Vaste verrekenprijs]],3,FALSE) -> 10087 | C91: 70800262.002 | D91: TP Nachtcreme hydro 50ml
A92: 70800264.001 | B92: =VLOOKUP(A92,[1]!Tabel1[[Nr.]:[Vaste verrekenprijs]],3,FALSE) -> 10092 | C92: 70800264.002 | D92: TP Q10 Nachtcreme 50 ml
A93: 70800267.001 | B93: =VLOOKUP(A93,[1]!Tabel1[[Nr.]:[Vaste verrekenprijs]],3,FALSE) -> 10099 | C93: 70800267.002 | D93: TP Nachtcreme Vitamine E Extra 50ml
A94: 70800269.001 | B94: =VLOOKUP(A94,[1]!Tabel1[[Nr.]:[Vaste verrekenprijs]],3,FALSE) -> 10104 | C94: 70800269.002 | D94: TP Sensitive Nachtcreme 50ml
A95: 70900004.001 | B95: =VLOOKUP(A95,[1]!Tabel1[[Nr.]:[Vaste verrekenprijs]],3,FALSE) -> 10158 | C95: / | D95: Kis Shaper 100 ml (oud)
A96: 70900004.002 | B96: =VLOOKUP(A96,[1]!Tabel1[[Nr.]:[Vaste verrekenprijs]],3,FALSE) -> 10159 | C96: / | D96: Kis Shaper 100 ml
A97: 70900004.003 | B97: =VLOOKUP(A97,[1]!Tabel1[[Nr.]:[Vaste verrekenprijs]],3,FALSE) -> 10160 | C97: 70900004.004 | D97: Kis Shaper 100ml
A98: 71000041.002 | B98: =VLOOKUP(A98,[1]!Tabel1[[Nr.]:[Vaste verrekenprijs]],3,FALSE) -> 10299 | C98: 71000041.003 | D98: Drent Ambachtscrème 200ml

Sheet Blad1
A1: Nr. | B1: Omschrijving | C1: Vaste verrekenprijs
A2: 10000000 | B2: Demi Water | C2: 1
A3: 10100001 | B3: Allantoin | C3: 2
A4: 10100002 | B4: Venuceane | C4: 3
A5: 10100003 | B5: Tyr-Excel | C5: 4
A6: 10100004 | B6: Zinc Oxide | C6: 5
A7: 10100005 | B7: Nalidone | C7: 6
A8: 10100006 | B8: Sepitonic M3 | C8: 7
A9: 10100007 | B9: Menthyl Lactate | C9: 8
A10: 10100008 | B10: Salicylic Acid, Ph.Eur | C10: 9
A11: 10100009 | B11: Hydroveg VV | C11: 10
A12: 10100010 | B12: Revitalin PF | C12: 11
A13: 10100011 | B13: Firmiderm LS 9120 | C13: 12
A14: 10100012 | B14: GSP-T | C14: 13
A15: 10100013 | B15: Antileukine 6 (MB) | C15: 14
A16: 10100014 | B16: Menthol | C16: 15
A17: 10100015 | B17: Coenzym Q10 | C17: 16
A18: 10100016 | B18: Sepilift DPHP (MB) | C18: 17
A19: 10100017 | B19: Soothex | C19: 18
A20: 10100018 | B20: Genencare OSMS BA | C20: 19
A21: 10100019 | B21: DHA | C21: 20
A22: 10100020 | B22: Lauryl PCA | C22: 21
A23: 10100021 | B23: Locron L | C23: 22
A24: 10100022 | B24: Benzyl Nicotinate | C24: 23
A25: 10100023 | B25: Bisabolol (Natural) | C25: 24
A26: 10100024 | B26: Sodium Hyaluronate (1.50-1.80mDa) | C26: 25
A27: 10100025 | B27: Erythrulose | C27: 26
A28: 10100026 | B28: Inositol | C28: 27
A29: 10100027 | B29: Syn-Coll | C29: 28
A30: 10100028 | B30: Biodine V | C30: 29
A31: 10100029 | B31: Aquaxyl | C31: 30
A32: 10100030 | B32: Glycoderm P | C32: 31
A33: 10100031 | B33: Biolin | C33: 32
A34: 10100032 | B34: Heliomoduline 2 | C34: 33
A35: 10100033 | B35: Zin'Cite | C35: 34
A36: 10100034 | B36: Belides ORG | C36: 35
A37: 10100035 | B37: AC.NET | C37: 36
A38: 10100036 | B38: Camphor, Ph.Eur | C38: 37
A39: 10100037 | B39: Tegodeo HY77 | C39: 38
A40: 10100038 | B40: Farnesol Plus | C40: 39
A41: 10100039 | B41: Linefactor | C41: 40
A42: 10100040 | B42: Aquarich | C42: 41
A43: 10100041 | B43: Gluadin WP | C43: 42
A44: 10100042 | B44: Keratec IFP PE | C44: 43
A45: 10100043 | B45: Hydrolastan PF | C45: 44
A46: 10100044 | B46: Pentavitin | C46: 45
A47: 10100045 | B47: Silk Milk | C47: 46
A48: 10100046 | B48: Perfection Peptide P3 | C48: 47
A49: 10100047 | B49: Mel | C49: 48
A50: 10100048 | B50: Sodium PCA (50%) | C50: 49
A51: 10100050 | B51: Royal Jelly | C51: 50
A52: 10100051 | B52: Fucogel 1.5 P | C52: 51
A53: 10100052 | B53: Litchiderm LS 9704 | C53: 52
A54: 10100053 | B54: Evermat | C54: 53
A55: 10100054 | B55: Papilactyl D | C55: 54
A56: 10100055 | B56: CM Glucan P | C56: 55
A57: 10100056 | B57: SymRepair 100 | C57: 56
A58: 10100057 | B58: SymRelief 100 | C58: 57
A59: 10100058 | B59: Dextrin | C59: 58
A60: 10100059 | B60: Fresh E | C60: 59
A61: 10100060 | B61: Oleoresin Capsicum | C61: 60
A62: 10100061 | B62: Symcalmin | C62: 61
A63: 10100062 | B63: SK Influx V (MB) | C63: 62
A64: 10100063 | B64: Drieline PF | C64: 63
A65: 10100064 | B65: Liftonin | C65: 64
A66: 10100065 | B66: Ectoin | C66: 65
A67: 10100067 | B67: Thiotaine | C67: 66
A68: 10100068 | B68: Phytaluronate PF | C68: 67
A69: 10100069 | B69: GP4G SP | C69: 68
A70: 10100070 | B70: Defensil | C70: 69
A71: 10100071 | B71: Hyalufix GL | C71: 70
A72: 10100072 | B72: Saltidin | C72: 71
A73: 10100073 | B73: Eyeliss (MB) | C73: 72
A74: 10100074 | B74: Haloxyl (MB) | C74: 73
A75: 10100075 | B75: C00498 Hyaluronique Filling Spheres (MB) | C75: 74
A76: 10100076 | B76: Sodium Lactate (50%), Ph.Eur | C76: 75
A77: 10100077 | B77: Heliostatine ISR | C77: 76
A78: 10100078 | B78: NP Moist 24 | C78: 77
A79: 10100079 | B79: Tyrosilane P3 | C79: 78
A80: 10100080 | B80: Symfinity 1298 | C80: 79
A81: 10100081 | B81: Camphor, Ph.Eur (NIET MEER) | C81: 80
A82: 10100082 | B82: Argireline Solution C | C82: 81
A83: 10100083 | B83: Allantoin (CS) | C83: 82
A84: 10100084 | B84: Gluadin R Benz | C84: 83
A85: 10100085 | B85: Avenacare ACO Oat Beta Glucan | C85: 84
A86: 10100086 | B86: Zinc Oxide (CS) | C86: 85
A87: 10100087 | B87: L-Carnosine (CS) | C87: 86
A88: 10100088 | B88: Cytobiol Lumin-Eye | C88: 87
A89: 10100089 | B89: SyriCalm CLR (PC) | C89: 88
A90: 10100090 | B90: Biotanning 2 | C90: 89
A91: 10100091 | B91: Regu-Age PF | C91: 90
A92: 10100092 | B92: Acacia Collagen in Glycerin | C92: 91
A93: 10100093 | B93: PatcH2O (MB) | C93: 92
A94: 10100094 | B94: Tyrostan PF | C94: 93
A95: 10100095 | B95: Lipexel (MB) | C95: 94
A96: 10100096 | B96: Coolact P | C96: 95
A97: 10100097 | B97: Meiritage | C97: 96
A98: 10100098 | B98: Elestan PW LS 9879 | C98: 97
A99: 10100099 | B99: Slim Excess | C99: 98
A100: 10100100 | B100: Algisium C2 | C100: 99
A101: 10100101 | B101: Unifect-GSE Liquid | C101: 100
A102: 10100102 | B102: Homeostatine M.S. | C102: 101
A103: 10100103 | B103: 1-Methylhydantoin-2-Imide | C103: 102
A104: 10100104 | B104: Renovage (MB) | C104: 103
A105: 10100105 | B105: Radicare | C105: 104
A106: 10100106 | B106: LIPOID Liposome 0307 | C106: 105
A107: 10100107 | B107: Melanobronze | C107: 106
A108: 10100108 | B108: Solarine III | C108: 107
A109: 10100109 | B109: Galaflow PL60 | C109: 108
A110: 10100110 | B110: Urea | C110: 109
A111: 10100111 | B111: Fiberaid | C111: 110
A112: 10100112 | B112: Plantactiv AGL | C112: 111
A113: 10100113 | B113: Maltodextrin, Food | C113: 112
A114: 10100114 | B114: Crotein HKP Powder-PW-(WD) | C114: 113
A115: 10100115 | B115: Resistem | C115: 114
A116: 10100116 | B116: Delentigo | C116: 115
A117: 10100117 | B117: Lox-Age | C117: 116
A118: 10100118 | B118: Phytoquintescine ISR | C118: 117
A119: 10100119 | B119: Beautifeye | C119: 118
A120: 10100120 | B120: Hydractin | C120: 119
A121: 10100121 | B121: Sodium Hyaluronate (1.6mDa) | C121: 120
A122: 10100122 | B122: D-Factor | C122: 121
A123: 10100123 | B123: RonaCare AP | C123: 122
A124: 10100124 | B124: Regu-Slim | C124: 123
A125: 10100125 | B125: Technisch Ureum | C125: 124
A126: 10100126 | B126: Sodium Hyaluronate (8-50kDa) | C126: 125
A127: 10100127 | B127: Caffeine | C127: 126
A128: 10100128 | B128: Vegetal Ceramides BGG | C128: 127
A129: 10100129 | B129: Apolluskin | C129: 128
A130: 10100130 | B130: Hydractin-LMF | C130: 129
A131: 10100131 | B131: Neurofense | C131: 130
A132: 10100132 | B132: Zinc PCA | C132: 131
A133: 10100133 | B133: Unipertan VEG-2002 | C133: 132
A134: 10100134 | B134: Aluminum Zirconium Tetrachlorohydrex Gly | C134: 133
A135: 10100135 | B135: Aluminum Chlorohydrate | C135: 134
A136: 10100136 | B136: Biolin P | C136: 135
A137: 10100137 | B137: Woresana Serum H5 | C137: 136
A138: 10100138 | B138: Sodium Hyaluronate (550 – 1 000 kDa) | C138: 137
A139: 10100139 | B139: L-Carnosine | C139: 138
A140: 10100140 | B140: Phosphatidylcholine | C140: 139
A141: 10100141 | B141: Variolac 836 | C141: 140
A142: 10100142 | B142: Inulin (75%) | C142: 141
A143: 10100143 | B143: Miconazole Nitraat | C143: 142
A144: 10100144 | B144: Glycolic Acid (70%) | C144: 143
A145: 10100145 | B145: Tegodeo PY88 | C145: 144
A146: 10100146 | B146: Fancorsil LIM1 | C146: 145
A147: 10100147 | B147: Nutrilan Keratin W PP | C147: 146
A148: 10100148 | B148: Cytobiol Iris A2 | C148: 147
A149: 10100149 | B149: NG Birch SAP | C149: 148
A150: 10100150 | B150: Biophytex LS 9832 | C150: 149
A151: 10100151 | B151: Radianskin PW LS 9918 | C151: 150
A152: 10100152 | B152: Phycojuvenine G | C152: 151
A153: 10100153 | B153: Mineralis GU/CU 60306F | C153: 152
A154: 10100154 | B154: Taurine | C154: 153
A155: 10100155 | B155: Matrigenics.14G | C155: 154
A156: 10100156 | B156: L-Arginine | C156: 155
A157: 10100157 | B157: Sodium Hyaluronate (1200-1800kDa) | C157: 156
A158: 10100158 | B158: Salicylic Acid, Ph.Eur (NIET MEER) | C158: 157
A159: 10100159 | B159: Inulin | C159: 158
A160: 10100160 | B160: Sodium Hyaluronate (10-50 kDa) | C160: 159
A161: 10100161 | B161: Hydromanil H.GL.-M.S. | C161: 160
A162: 10200001 | B162: Lauroyl Lysine | C162: 161
A163: 10200002 | B163: Disodium EDTA | C163: 162
A164: 10200003 | B164: Aluminum Starch Octenylsuccinate | C164: 163
A165: 10200004 | B165: Sodium Chloride | C165: 164
A166: 10200005 | B166: Magnesium Sulfate (Heptahydrate) | C166: 165
A167: 10200006 | B167: Tetrasodium EDTA | C167: 166
A168: 10200007 | B168: Talc | C168: 167
A169: 10200008 | B169: Magnesium Stearate | C169: 168
A170: 10200009 | B170: Polwhite B | C170: 169
A171: 10200010 | B171: Sepimat CP 5 | C171: 170
A172: 10200011 | B172: Distarch Phosphate | C172: 171
A173: 10200012 | B173: Zinc Stearate | C173: 172
A174: 10200013 | B174: Arlasolve DMI-PC-LQ-(AP) | C174: 173
A175: 10200014 | B175: Sodium Acetate, Ph.Eur | C175: 174
A176: 10200015 | B176: Maris Sal | C176: 175
A177: 10200016 | B177: Sodium Citrate (Dihydrate), Ph.Eur | C177: 176
A178: 10200017 | B178: Zea Mays Starch | C178: 177
A179: 10200018 | B179: Boron Nitride | C179: 178
A180: 10200019 | B180: Nylon-12 | C180: 179
A181: 10200020 | B181: Zinc Sulfate (Hexahydrate),Technical | C181: 180
A182: 10200021 | B182: Sodium Chloride, Ph.Eur | C182: 181
A183: 10200022 | B183: Maltitolsyrup (E965) | C183: 182
A184: 10200023 | B184: Tetrasodium Glutamate Diacetate (47%) | C184: 183
A185: 10200024 | B185: Tapioca Starch | C185: 184
A186: 10200025 | B186: Zinc Sulfate (Heptahydrate), Ph.Eur | C186: 185
A187: 10200026 | B187: Potassium Phosphate | C187: 186
A188: 10200027 | B188: WD-VCB25 | C188: 187
A189: 10200028 | B189: Calcium Citrate (Tetrahydrate) | C189: 188
A190: 10200029 | B190: Solawhite | C190: 189
A191: 10200030 | B191: Maris Sal (CS) | C191: 190
A192: 10200031 | B192: CosBlue Montmorillonite Clay | C192: 191
A193: 10200032 | B193: CosRed Illite Clay | C193: 192
A194: 10200033 | B194: Kaolin | C194: 193
A195: 10200034 | B195: Aqua Purificata, Ph.Eur | C195: 194
A196: 10200035 | B196: Tapioca Starch (CS) | C196: 195
A197: 10300001 | B197: Ronoxan FS20 | C197: 196
A198: 10300002 | B198: Oxynex K Liquid | C198: 197
A199: 10300003 | B199: BHT | C199: 198
A200: 10300004 | B200: Phytrox LT10-IP | C200: 199
... 11546 more rows
